Cogmind - Beta 14 @@@ ROGUE MODE // 2024.09.01 @ 03:13:18 Player: grhkm Result: Destroyed by G-47 Trooper with Particle Gun Performance ------------- Evolutions (2) 1000 Regions Visited (5) 1000 Robots Destroyed (61) 305 Value Destroyed (1369) 1369 Prototype IDs (2) 40 Alien Tech Used (0) 0 Bonus (56) 56 TOTAL SCORE: 3770 Bonus ------- High Alert Combat Kills 56 Cogmind --------- Core Integrity 0/550 Matter 300/300 Energy 100/100 System Corruption 0% Temperature Cool (9) Movement Core (50) Location -8/Storage Parts ------- > --- POWER (1) -------- (None) > --- PROPULSION (4) --- (None) > --- UTILITY (4) ------ (None) > --- WEAPON (2) ------- (None) > --- INVENTORY (5) ---- Large Storage Unit Light Assault Rifle Gauss Rifle Heavy Hammer Peak State ------------ > --- POWER ------------ Light Ion Engine > --- PROPULSION ------- Aluminum Leg Airjet > --- UTILITY ---------- Large Storage Unit Advanced Weight Redist. System Improved Light Armor Plating > --- WEAPON ----------- Heavy Assault Rifle Gauss Rifle > --- INVENTORY -------- Large Storage Unit EM Shotgun Light Assault Rifle Light Assault Rifle Improved Grenade Launcher Heavy Hammer [Rating: 19] Favorites ----------- Power Light Ion Engine Engine Light Ion Engine Power Core Light Nuclear Core Propulsion Aluminum Leg Leg Aluminum Leg Hover Unit Airjet Utility Small Storage Unit Device Advanced Weight Redist. System Storage Small Storage Unit Protection Light Armor Plating Weapon Improved Medium Laser Energy Gun Improved Medium Laser Ballistic Gun Assault Rifle Launcher Improved Grenade Launcher Build | -11 -10 -10 -9 -8 -8 ------- Run | Yrd Mat Min Mat Mat Sto Slots Evolved 4 | . . . 2 2 . Power . | . . . . . . Propulsion 2 | . . . 1 1 . Utility 2 | . . . 1 1 . Weapon . | . . . . . . Parts Attached 59 | 6 12 4 14 15 8 Power 9 | 1 2 1 1 3 1 Engine 8 | 1 2 . 1 3 1 Core 1 | . . 1 . . . Reactor . | . . . . . . Propulsion 15 | 2 4 3 4 1 1 Treads . | . . . . . . Leg 14 | 2 4 3 4 1 . Wheel . | . . . . . . Hover 1 | . . . . . 1 Flight . | . . . . . . Utility 16 | 1 3 . 7 3 2 Device 6 | . 2 . 3 1 . Storage 4 | 1 1 . . 2 . Processor . | . . . . . . Hackware . | . . . . . . Protection 6 | . . . 4 . 2 Artifact . | . . . . . . Weapon 19 | 2 3 . 2 8 4 Energy Gun 5 | . 2 . . 2 1 Energy Cannon . | . . . . . . Ballistic Gun 11 | 2 1 . 2 4 2 Ballistic Cannon . | . . . . . . Launcher 3 | . . . . 2 1 Special Weapon . | . . . . . . Impact Weapon . | . . . . . . Slashing Weapon . | . . . . . . Piercing Weapon . | . . . . . . Special Melee Weapon . | . . . . . . Unidentified Prototypes 2 | . 1 . . . 1 Parts Lost 25 | . 3 . 2 8 12 Power 5 | . 1 . 1 1 2 Propulsion 6 | . . . 1 3 2 Utility 6 | . 1 . . 2 3 Weapon 8 | . 1 . . 2 5 Highest Loss Streak 5 | . 2 . 2 5 4 To Critical Strikes 1 | . . . . . 1 Average Slot Usage (%) 80 | . 94 100 92 75 50 Engine 7 | . 13 4 2 8 6 Core 2 | . . 9 7 . . Leg 21 | . 28 28 30 21 4 Device 6 | . 5 . 5 8 9 Storage 14 | . 18 28 15 9 7 Protection 4 | . . . 8 10 4 Energy Gun 8 | . 1 28 15 1 5 Ballistic Gun 12 | . 25 . 6 11 11 Peak Build Rating 19 | 6 11 13 17 16 19 Average Rating 11 | 4 6 12 13 13 13 On Entrance 8 | . 6 11 13 9 14 Naked Turns 4 | . . . . . 4 Heaviest Build 41 | 11 18 18 23 35 41 Greatest Support 39 | 20 20 20 30 39 10 Greatest Overweight (x) 13 | . . . . 8 13 Average Overweight (x) . | . . . . . 4 Largest Inventory Capacity 15 | 8 8 8 8 15 15 Average Capacity 10 | 7 8 8 8 13 13 Most Carried 10 | . 8 8 8 10 8 Average Carried 6 | . 4 8 7 8 6 Final Capacity 15 | 8 8 8 8 15 5 Final Carried 8 | . 8 8 6 7 4 Class Distribution -------------------- 59% | Scavenger-Mutant 40% | Mutant Dominant Class ---------------- Mutant | -10/Materials Scavenger-Mutant | -10/Mines Scavenger-Mutant | -9/Materials Scavenger-Mutant | -8/Materials Mutant | -8/Storage Resources | -11 -10 -10 -9 -8 -8 ----------- Run | Yrd Mat Min Mat Mat Sto Matter Collected 1414 | 240 338 76 191 184 385 Remotely . | . . . . . . Salvage Created 1692 | . 453 119 377 398 345 Parts 127 | . 38 10 21 39 19 Haulers Intercepted . | . . . . . . Recyclers Shooed 4 | . 2 . 1 . 1 Parts Field Recycled . | . . . . . . Retrieved Matter . | . . . . . . Parts Self-Destructed . | . . . . . . Prevented . | . . . . . . Kills | -11 -10 -10 -9 -8 -8 ------- Run | Yrd Mat Min Mat Mat Sto Combat Hostiles Destroyed 43 | . 15 2 9 12 5 Guns 36 | . 15 2 9 6 4 AOE 7 | . . . . 6 1 Classes Destroyed 8 | . 4 . 2 2 . Worker 7 | . 2 2 . 2 1 Builder 8 | . 1 . 2 4 1 Recycler 3 | . . . 1 1 1 Swarmer 18 | . 9 . 4 4 1 Grunt 17 | . 6 2 4 3 2 Sentry 3 | . . . 1 . 2 Specialist 4 | . . . . 4 . Hunter 1 | . . . . 1 . Best Kill Streak 10 | . 5 2 4 10 2 Combat Bots Only 4 | . 4 2 4 4 1 Max Kills in Single Turn 3 | . 1 1 2 3 1 Gunslinging 1 | . . . 1 . . Exploded 2 | . . . . 2 1 Melee . | . . . . . . Uniques/NPCs Destroyed . | . . . . . . Combat | -11 -10 -10 -9 -8 -8 -------- Run | Yrd Mat Min Mat Mat Sto Hostile Shots Fired 352 | . 89 5 61 88 109 Missed 86 | . 20 1 11 23 31 Damage Taken 3397 | . 626 53 566 1094 1058 Core 777 | . 133 13 69 221 341 Absorbed by Shields . | . . . . . . Core Remaining (%) 74 | 100 . 41 82 . . Volleys Fired 162 | . 49 6 40 32 35 Largest 2 | . 2 2 2 2 2 Hottest 112 | . 76 112 112 99 91 Shots Fired 290 | . 93 12 68 53 64 Gun 276 | . 93 12 68 41 62 Cannon . | . . . . . . Launcher 14 | . . . . 12 2 Special . | . . . . . . Kinetic 190 | . 92 . 22 37 39 Thermal 66 | . 1 12 46 4 3 Explosive 14 | . . . . 12 2 Electromagnetic 20 | . . . . . 20 Robot Hit Streak 15 | . 9 9 15 8 14 Robot Miss Streak 5 | . 3 . 5 3 4 Penetration Max 1 | . . . . 1 . Secondary Targets 3 | . 1 . 2 . . Max Gunslinging Chain 1 | . 1 . 1 . . Shots Hit Robots 161 | . 54 8 39 28 32 Core Hits 92 | . 26 5 14 32 15 Critical Kills 1 | . 1 . . . . Critical Parts Destroyed 2 | . 1 . 1 . . Critical Strikes 8 | . 2 2 3 1 . Burn 5 | . . 2 2 1 . Destroy 3 | . 2 . 1 . . Melee Attacks . | . . . . . . Impact . | . . . . . . Slashing . | . . . . . . Piercing . | . . . . . . Sneak Attacks . | . . . . . . Combat Hostiles . | . . . . . . Follow-up Attacks . | . . . . . . Damage Inflicted 3228 | . 596 133 578 1315 606 Guns 2128 | . 596 133 578 387 434 Cannons . | . . . . . . Explosions 1100 | . . . . 928 172 Melee . | . . . . . . Ramming . | . . . . . . Kinetic 1374 | . 578 . 202 337 257 Thermal 675 | . 18 133 376 50 98 Explosive 1053 | . . . . 928 125 Electromagnetic 126 | . . . . . 126 Impact . | . . . . . . Slashing . | . . . . . . Piercing . | . . . . . . Highest Corruption . | . . . . . . Average Corruption . | . . . . . . Corruption Purged . | . . . . . . Corruption Blocked . | . . . . . . Overload Shots . | . . . . . . Overflow Damage 31 | . . . . 31 . Projectiles . | . . . . . . Explosions 31 | . . . . 31 . Melee . | . . . . . . Knockbacks . | . . . . . . Impact . | . . . . . . Kinetic . | . . . . . . Secondary . | . . . . . . Self-Inflicted Damage 243 | . . . . 159 84 Shots 10 | . . . . 8 2 Rammed . | . . . . . . Targets Rammed . | . . . . . . Kicked . | . . . . . . Crushed . | . . . . . . Highest Temperature 506 | . 36 231 506 48 81 Average Temperature 115 | . 9 91 176 13 28 Received Heat Transfer 933 | . 138 36 165 225 369 Effects 10 | . . . 10 . . Energy Bleed 2 | . . . 2 . . Interference 4 | . . . 4 . . Damage (major) 4 | . . . 4 . . Siege Activations . | . . . . . . Robots Corrupted . | . . . . . . Combat Hostiles . | . . . . . . Parts Fried . | . . . . . . Impact Corruptions . | . . . . . . Robots Melted . | . . . . . . Combat Hostiles . | . . . . . . Parts Melted 3 | . . . 3 . . Heat Transferred 1739 | . 37 444 962 185 111 Parts Sabotaged . | . . . . . . Parts Stolen . | . . . . . . Parts Stripped . | . . . . . . Power Chain Reactions 1 | . . . . . 1 Alert | -11 -10 -10 -9 -8 -8 ------- Run | Yrd Mat Min Mat Mat Sto Peak Influence 470 | . 470 201 419 417 296 Initial 176 | . . 124 78 92 176 Average 203 | . 219 174 211 223 203 Maximum Alert Level 2 | . 2 1 2 2 1 Low Security (%) 49 | 100 47 60 57 32 46 Level 1 44 | . 41 39 36 55 53 Level 2 5 | . 10 . 6 12 . Level 3 . | . . . . . . Level 4 . | . . . . . . Level 5 . | . . . . . . High Security . | . . . . . . Max Security . | . . . . . . Squads Dispatched 11 | . 2 . 2 4 3 Investigation 1 | . . . . . 1 Extermination . | . . . . . . Reinforcement 10 | . 2 . 2 4 2 Assault . | . . . . . . Garrison . | . . . . . . Intercept . | . . . . . . Searches Triggered . | . . . . . . Construction Impeded 3 | . . . . 2 1 Haulers Reinforced . | . . . . . . Active Scanning Responses . | . . . . . . Cargo Convoy Interrupts . | . . . . . . Stealth | -11 -10 -10 -9 -8 -8 --------- Run | Yrd Mat Min Mat Mat Sto Distress Signals 3 | . 2 . . . 1 Communications Jammed . | . . . . . . Distress Signals . | . . . . . . Times Spotted 77 | . 30 2 15 11 19 Peak Tracking Total 7 | . 5 2 4 5 7 Tactical Retreats 11 | . 6 . 2 . 3 Traps | -11 -10 -10 -9 -8 -8 ------- Run | Yrd Mat Min Mat Mat Sto Traps Triggered 1 | . 1 . . . . Indirectly . | . . . . . . Trap Hack Attempts . | . . . . . . Triggered . | . . . . . . Disarmed . | . . . . . . Reprogrammed . | . . . . . . Reused . | . . . . . . Traps Extracted . | . . . . . . Installed . | . . . . . . Triggered . | . . . . . . Machines | -11 -10 -10 -9 -8 -8 ---------- Run | Yrd Mat Min Mat Mat Sto Machines Disabled 4 | . . 1 1 . 2 Max in Single Turn 2 | . . 1 1 . 2 Machines Repaired . | . . . . . . Machines Dismantled . | . . . . . . Machines Sabotaged . | . . . . . . Overloaded Fab Kills . | . . . . . . Hacking | -11 -10 -10 -9 -8 -8 --------- Run | Yrd Mat Min Mat Mat Sto Machines Accessed 6 | . 3 1 1 . 1 Terminals 5 | . 2 1 1 . 1 Fabricators . | . . . . . . Repair Stations . | . . . . . . Recycling Units 1 | . 1 . . . . Scanalyzers . | . . . . . . Garrison Access . | . . . . . . Total Hacks 16 | . 9 1 3 . 3 Successful 13 | . 8 1 3 . 1 Failed 3 | . 1 . . . 2 Catastrophic . | . . . . . . Database Lockouts . | . . . . . . Manual . | . . . . . . Terminals 13 | . 6 1 3 . 3 Fabricators . | . . . . . . Repair Stations . | . . . . . . Recycling Units 3 | . 3 . . . . Scanalyzers . | . . . . . . Garrison Access . | . . . . . . Terminal Hacks 11 | . 6 1 3 . 1 Record 8 | . 5 1 2 . . Open Door 1 | . . . . . 1 Alert Level 1 | . 1 . . . . Locate Traps 1 | . . . 1 . . Fabricator Hacks . | . . . . . . Repair Station Hacks . | . . . . . . Recycling Unit Hacks 2 | . 2 . . . . Report Inventory 1 | . 1 . . . . Retrieve Components 1 | . 1 . . . . Scanalyzer . | . . . . . . Garrison Access Hacks . | . . . . . . Unauthorized Hacks . | . . . . . . Terminals . | . . . . . . Fabricators . | . . . . . . Repair Stations . | . . . . . . Recycling Units . | . . . . . . Scanalyzers . | . . . . . . Garrison Access . | . . . . . . Data Cores Recovered . | . . . . . . Used . | . . . . . . Hacking Detections 3 | . 2 . . . 1 Full Trace Events 2 | . 1 . . . 1 Feedback Events . | . . . . . . Feedback Blocked . | . . . . . . Robot Schematics Acquired . | . . . . . . Robots Built . | . . . . . . Authchips . | . . . . . . Time . | . . . . . . Total Robot Build Rating . | . . . . . . Part Schematics Acquired . | . . . . . . Parts Built . | . . . . . . Authchips . | . . . . . . Time . | . . . . . . Total Part Build Rating . | . . . . . . Parts Repaired . | . . . . . . Time . | . . . . . . Parts Recycled . | . . . . . . Recycled Matter . | . . . . . . Retrieved Matter . | . . . . . . Retrieved Components 6 | . 6 . . . . Parts Scanalyzed . | . . . . . . Part Schematics Acquired . | . . . . . . Parts Damaged . | . . . . . . Bothacking | -11 -10 -10 -9 -8 -8 ------------ Run | Yrd Mat Min Mat Mat Sto Used RIF Installer . | . . . . . . Robots Hacked . | . . . . . . Non-combat . | . . . . . . Combat . | . . . . . . Robot Hacks Applied . | . . . . . . Relay Couplers Released . | . . . . . . Fabnet Peak Effective % . | . . . . . . Robots Rewired . | . . . . . . Allies Hacked . | . . . . . . Hacks Repelled . | . . . . . . Allies | -11 -10 -10 -9 -8 -8 -------- Run | Yrd Mat Min Mat Mat Sto Total Allies . | . . . . . . Largest Group . | . . . . . . Highest-Rated Group . | . . . . . . Highest-Rated Ally . | . . . . . . Total Orders . | . . . . . . Ally Attacks . | . . . . . . Total Damage . | . . . . . . Kills . | . . . . . . Allies Corrupted . | . . . . . . Allies Melted . | . . . . . . Intel | -11 -10 -10 -9 -8 -8 ------- Run | Yrd Mat Min Mat Mat Sto Robot Analysis Total . | . . . . . . Derelict Logs Recovered 1 | . . 1 . . . Drone Launches . | . . . . . . Drone Recoveries . | . . . . . . Exploration | -11 -10 -10 -9 -8 -8 ------------- Run | Yrd Mat Min Mat Mat Sto Turns Passed 2236 | 57 523 272 468 339 577 Spaces Moved 1006 | 43 267 182 230 142 142 Core 56 | 4 . . . 1 51 Treads . | . . . . . . Legs 923 | 39 267 182 230 141 64 Wheels . | . . . . . . Hover 27 | . . . . . 27 Flight . | . . . . . . Fastest Speed 50 | 50 120 120 120 120 50 Average Speed 151 | 113 120 120 120 143 318 Slowest Speed 700 | 120 120 120 120 450 700 Overloaded Moves . | . . . . . . Propulsion Burnouts . | . . . . . . Robots Hopped . | . . . . . . Cave-ins Triggered . | . . . . . . Exploration Rate (%) 24 | 4 44 42 20 10 27 Regions Visited 5 Branch Regions 2 Pre-discovered Areas . | . . . . . . Known Exits Taken . | . . . . . . Unknown Exits Taken 5 | 1 1 1 1 1 . Scrap Searched . | . . . . . . Spaces Dug 18 | . . . . . 18 Terrain Destroyed 173 | . . . . 135 38 Melee . | . . . . . . Projectile 3 | . . . . 3 . AOE 170 | . . . . 132 38 Terrain Rammed . | . . . . . . Walls Destroyed . | . . . . . . Machines Disabled . | . . . . . . Actions | -11 -10 -10 -9 -8 -8 --------- Run | Yrd Mat Min Mat Mat Sto Total 1439 | 48 384 225 358 224 200 Wait 159 | . 44 28 49 25 13 Move 1001 | 42 266 181 229 141 142 Hop . | . . . . . . Pick Up 24 | . 8 1 10 4 1 Fast Attach 24 | 6 4 1 5 4 4 Attach 16 | . 2 . 7 4 3 Detach 6 | . 1 . 2 3 . Swap 19 | . 6 3 2 7 1 Drop 28 | . 4 5 14 4 1 Fire 162 | . 49 6 40 32 35 Melee . | . . . . . . Ram . | . . . . . . Kick . | . . . . . . Crush . | . . . . . . Escape Stasis . | . . . . . . Rewire . | . . . . . . Trap . | . . . . . . Miscellaneous . | . . . . . . Route ------- -11/Scrapyard -10/Materials -10/Mines -9/Materials -8/Materials -8/Storage History --------- Turn | Location | Event 5 | -11/Scrapyard | Discovered new exit (range 16) 58 | -11/Scrapyard | Entered Materials 313 | -10/Materials | Build established: Mutant 447 | -10/Materials | Core integrity fell below 50% 533 | -10/Materials | Discovered new exit (range 7) 581 | -10/Materials | Entered Mines 610 | -10/Mines | Learned Materials stockpile data 748 | -10/Mines | Discovered new exit (range 9) 818 | -10/Mines | Received a Rocket Launcher from a helpful Derelict 853 | -10/Mines | Entered Materials 853 | -9/Materials | Evolved 2 slots: Propulsion x1, Utility x1 974 | -9/Materials | Build established: Scavenger-Mutant 1291 | -9/Materials | Discovered new exit (range 4) 1321 | -9/Materials | Entered another Materials area 1321 | -8/Materials | Evolved 2 slots: Propulsion x1, Utility x1 1321 | -8/Materials | Discovered new exit (range 15) 1560 | -8/Materials | Lost 5 parts (1n2u2w) 1651 | -8/Materials | Lost 3 parts (1p2n) 1660 | -8/Materials | Entered Storage 1939 | -8/Storage | Core integrity fell below 50% 1976 | -8/Storage | Lost 3 parts (1p2n) 2230 | -8/Storage | Core integrity fell below 20% 2232 | -8/Storage | Build established: Mutant 2237 | -8/Storage | Destroyed by G-47 Trooper with Particle Gun Last Messages --------------- Destroyed Lgt. Armor Plating. U-05 Engineer destroyed. G-47 Trooper destroyed. Door Terminal disabled. U-05 Engineer builds a Wall. U-05 Engineer lays Concrete. The unstable cave ceiling collapses. Aluminum Leg crushed. U-05 Engineer builds a Wall. U-05 Engineer builds a Door. Extracted 9 matter. R-06 Scavenger collects Corrupted Com. Wheel. Acquired 81 matter. R-06 Scavenger collects Com. Wheel. R-06 Scavenger collects Lgt. Assault Rifle. Imp. Grenade Launcher destroyed. Hvy. Assault Rifle destroyed. Adv. Weight Redist. System destroyed. Critical hit (Destroy). F-cell Engine destroyed. Map ----- +----------------------------------------------------+ | | | | | | | | | | | | | | | | | | | | | | | | | | | | | ?????????????????????????????????????????????????? | | ?????????????????????????????????????????????????? | | ?????????????????????????????????????????????????? | | ?????????????????????????????????????????????????? | | ?????????????????????????????????????????????????? | | ?????????????????????????????????????????????????? | | ?????????????###########+###?????????????????????? | | ???????????? o ?????????????????????? | | ???????????? ??????????????????????? | | ??????????? """ ??????????????????????? | | ????????????#=! """ ##?????????????????????? | | ????????????#]! """ @T#?????????????????????? | | ????????????#]! ##?????????????????????? | | ????????????# w #??????????????????????? | | ????????????# a #??????????????????????? | | ????????????+ !* #??????????????????????? | | ????????????# s ** ###########???##"#####?? | | ????????????# "T" *k #???# #?? | | ????????????# a s ######+ ### | | ????????????# s g % ==!* !/ # | | ????????????##+#########+#########+#########[% ### | | ?????????????????????? ?? ??# ## #! #? | | ????????????????????# "???" ?# ## #? | | ????????????????????#?????? # % ## #? | | ???????????????????????????? # ##### ####? | | ???????????????????????????? / #???# ##??? | | ???????????????????????????" # #???# #???? | | ????????????????????????"??" # #???# #???? | | ????????????????????????? ? ?# #???# #???? | | ?????????????????????????? ??###+#######???# #???? | | ?????????????????????????##/???# #?????????? ????? | | ?????????????????????????## #??# #?????????? ????? | | ????????????????????### ## ### #?#########+????? | | ??????????????????T #?# #???? | | ????????????????????????## ^ #?# """""" #???? | | ????????????????????######### ### "???????????? | +----------------------------------------------------+ Best States ------------- Heat Dissipation 35 Energy Generation 19 Energy Capacity 500 Matter Stores 400 Matter Capacity 400 Sight Range 16 Terrain Scan Range 14 Terrain Scan Density 10 Additional Mass Support 9 Armor Coverage 300 Evasion (%) 55 Item Schematics ----------------- None Robot Schematics ------------------ None Fabricated ------------ Nothing Alien Tech Used ----------------- None Achievements -------------- Please Form A Line Challenges ------------ None Game ------ Seed DeuteriumThermalCore Manual? 0 Play Time 00:32:53 Cumulative 2.3 hours Start 2024.09.01 @ 02:41:38 End 2024.09.01 @ 03:13:18 Sessions 1 Manual Loads 0 Difficulty Rogue Special Mode None Game No. 8 Rogue 8 Adventurer 0 Explorer 0 Win Type - Total 0 Types 0/0/0/0/0/0/0/0/0 Lore% 1 Gallery% 7 Achievement% 4 Wizard Run 0 Options --------- Layout 1 ASCII 0 Keyboard 0 Movement Numpad Keybinds 0 Fullscreen 1 Font 16/Terminus Map View 50x40 Zoom Use 0% Tactical HUD 0 Map Filters NONE Filters NONE Steam 1 RUN: 707cf1e3-d107-46f1-9a4e-4298437e0dc8